[Event "Titled Tuesday Blitz April 25 Late 2023"]
[White "Kuzmin, Roman"]
[Black "Lewicki, Miroslaw"]
[WhiteFideId "44134932"]
[BlackFideId "1113380"]
[WhiteElo "2192"]
[BlackElo "2212"]
[Result "1-0"]
[Round "06"]
[TimeControl "180+2"]
[Date "2023.04.25"]
[WhiteClock "0:01:06"]
[BlackClock "0:00:17"]

1. e4 {[%clk 0:03:00]}  c5 {[%clk 0:02:56]} 2. Nf3 {[%clk 0:03:01]}  d6 {[%clk 0:02:56]} 3. d4 {[%clk 0:03:00]}  cxd4 {[%clk 0:02:57]} 4. Nxd4 {[%clk 0:03:00]}  Nf6 {[%clk 0:02:57]} 5. Nc3 {[%clk 0:03:01]}  g6 {[%clk 0:02:57]} 6. Be3 {[%clk 0:02:56]}  Bg7 {[%clk 0:02:58]} 7. f3 {[%clk 0:02:54]}  O-O {[%clk 0:02:58]} 8. Qd2 {[%clk 0:02:55]}  Nc6 {[%clk 0:02:58]} 9. O-O-O {[%clk 0:02:55]}  Bd7 {[%clk 0:02:51]} 10. h4 {[%clk 0:02:54]}  a5 {[%clk 0:02:42]} 11. h5 {[%clk 0:02:26]}  Ne5 {[%clk 0:02:36]} 12. Bh6 {[%clk 0:02:24]}  Be6 {[%clk 0:01:57]} 13. Bxg7 {[%clk 0:02:02]}  Kxg7 {[%clk 0:01:56]} 14. hxg6 {[%clk 0:02:03]}  Nxg6 {[%clk 0:01:44]} 15. Qh6+ {[%clk 0:01:55]}  Kh8 {[%clk 0:01:44]} 16. g4 {[%clk 0:01:41]}  Rg8 {[%clk 0:00:53]} 17. g5 {[%clk 0:01:39]}  Rg7 {[%clk 0:00:54]} 18. gxf6 {[%clk 0:01:37]}  exf6 {[%clk 0:00:55]} 19. Bh3 {[%clk 0:01:30]}  Qd7 {[%clk 0:00:45]} 20. Nd5 {[%clk 0:01:20]}  Qa4 {[%clk 0:00:40]} 21. Bxe6 {[%clk 0:01:14]}  fxe6 {[%clk 0:00:36]} 22. Nxf6 {[%clk 0:01:10]}  Nf8 {[%clk 0:00:28]} 23. Nxe6 {[%clk 0:01:07]}  Rg6 {[%clk 0:00:17]} 24. Qxh7+ {[%clk 0:01:06]} 1-0


[Site "https://www.chess.com"]

[Event "Titled Tuesday Blitz April 25 Late 2023"]
[White "Adla, Diego"]
[Black "Jaskolka, Tomasz"]
[WhiteFideId "100072"]
[BlackFideId "1170791"]
[WhiteElo "2377"]
[BlackElo "2155"]
[Result "1-0"]
[Round "06"]
[TimeControl "180+2"]
[Date "2023.04.25"]
[WhiteClock "0:00:10"]
[BlackClock "0:00:07"]

1. c4 {[%clk 0:02:59]}  c6 {[%clk 0:02:57]} 2. d4 {[%clk 0:02:59]}  d5 {[%clk 0:02:57]} 3. cxd5 {[%clk 0:02:59]}  cxd5 {[%clk 0:02:57]} 4. Bf4 {[%clk 0:03:00]}  Nc6 {[%clk 0:02:57]} 5. e3 {[%clk 0:03:00]}  Nf6 {[%clk 0:02:57]} 6. Nc3 {[%clk 0:03:00]}  Bf5 {[%clk 0:02:56]} 7. Qb3 {[%clk 0:02:56]}  Qd7 {[%clk 0:02:56]} 8. Nf3 {[%clk 0:02:55]}  e6 {[%clk 0:02:14]} 9. Bb5 {[%clk 0:02:54]}  Bd6 {[%clk 0:02:07]} 10. Ne5 {[%clk 0:02:52]}  Bxe5 {[%clk 0:02:07]} 11. Bxe5 {[%clk 0:02:50]}  a6 {[%clk 0:02:05]} 12. Bxc6 {[%clk 0:02:44]}  Qxc6 {[%clk 0:02:00]} 13. O-O {[%clk 0:02:43]}  Nd7 {[%clk 0:01:50]} 14. Bg3 {[%clk 0:02:38]}  O-O {[%clk 0:01:49]} 15. Rfc1 {[%clk 0:02:35]}  Qb6 {[%clk 0:01:48]} 16. Na4 {[%clk 0:02:29]}  Qxb3 {[%clk 0:01:46]} 17. axb3 {[%clk 0:02:29]}  Rac8 {[%clk 0:01:43]} 18. b4 {[%clk 0:02:29]}  Bd3 {[%clk 0:01:28]} 19. Nc5 {[%clk 0:02:28]}  Nxc5 {[%clk 0:01:29]} 20. bxc5 {[%clk 0:02:27]}  Bb5 {[%clk 0:01:30]} 21. f3 {[%clk 0:02:23]}  Rfd8 {[%clk 0:01:24]} 22. Kf2 {[%clk 0:02:22]}  f6 {[%clk 0:01:23]} 23. b4 {[%clk 0:02:20]}  Kf7 {[%clk 0:01:22]} 24. Ke1 {[%clk 0:02:18]}  Re8 {[%clk 0:01:17]} 25. Bd6 {[%clk 0:02:13]}  e5 {[%clk 0:01:15]} 26. dxe5 {[%clk 0:02:13]}  fxe5 {[%clk 0:01:16]} 27. Kd2 {[%clk 0:02:13]}  Ke6 {[%clk 0:01:14]} 28. h4 {[%clk 0:02:04]}  g6 {[%clk 0:01:14]} 29. h5 {[%clk 0:02:03]}  g5 {[%clk 0:01:10]} 30. h6 {[%clk 0:02:03]}  g4 {[%clk 0:01:05]} 31. Rh1 {[%clk 0:02:00]}  gxf3 {[%clk 0:00:56]} 32. gxf3 {[%clk 0:02:00]}  Rg8 {[%clk 0:00:57]} 33. Rag1 {[%clk 0:01:58]}  d4 {[%clk 0:00:48]} 34. Rg7 {[%clk 0:01:54]}  Kd5 {[%clk 0:00:30]} 35. Rh5 {[%clk 0:01:50]}  Rce8 {[%clk 0:00:20]} 36. Rxg8 {[%clk 0:01:40]}  Rxg8 {[%clk 0:00:20]} 37. Rxe5+ {[%clk 0:01:40]}  Kc4 {[%clk 0:00:21]} 38. exd4 {[%clk 0:01:34]}  Kxd4 {[%clk 0:00:17]} 39. Re4+ {[%clk 0:01:33]}  Kd5 {[%clk 0:00:17]} 40. Re7 {[%clk 0:01:30]}  Rg2+ {[%clk 0:00:17]} 41. Kc3 {[%clk 0:01:27]}  Rf2 {[%clk 0:00:12]} 42. Rxh7 {[%clk 0:01:09]}  Rxf3+ {[%clk 0:00:12]} 43. Kd2 {[%clk 0:01:09]}  Rh3 {[%clk 0:00:12]} 44. Bf4 {[%clk 0:01:03]}  Kd4 {[%clk 0:00:10]} 45. Rxb7 {[%clk 0:00:58]}  Rd3+ {[%clk 0:00:08]} 46. Ke1 {[%clk 0:00:57]}  Rf3 {[%clk 0:00:07]} 47. h7 {[%clk 0:00:34]}  Rf1+ {[%clk 0:00:07]} 48. Kd2 {[%clk 0:00:35]}  Rf2+ {[%clk 0:00:08]} 49. Kc1 {[%clk 0:00:35]}  Rf1+ {[%clk 0:00:08]} 50. Kb2 {[%clk 0:00:31]}  Rh1 {[%clk 0:00:08]} 51. Re7 {[%clk 0:00:17]}  Kc4 {[%clk 0:00:05]} 52. Be5 {[%clk 0:00:16]}  Rg1 {[%clk 0:00:02]} 53. h8=Q {[%clk 0:00:15]}  Rg2+ {[%clk 0:00:03]} 54. Kc1 {[%clk 0:00:15]}  Kb3 {[%clk 0:00:03]} 55. Bf4 {[%clk 0:00:13]}  Rg1+ {[%clk 0:00:03]} 56. Kd2 {[%clk 0:00:14]}  Rg2+ {[%clk 0:00:04]} 57. Ke1 {[%clk 0:00:13]}  Rg1+ {[%clk 0:00:04]} 58. Kf2 {[%clk 0:00:13]}  Rf1+ {[%clk 0:00:05]} 59. Kg3 {[%clk 0:00:13]}  Rg1+ {[%clk 0:00:05]} 60. Kf3 {[%clk 0:00:13]}  Rf1+ {[%clk 0:00:06]} 61. Kg4 {[%clk 0:00:13]}  Rg1+ {[%clk 0:00:06]} 62. Kf5 {[%clk 0:00:13]}  Rf1 {[%clk 0:00:06]} 63. Qh3+ {[%clk 0:00:12]}  Kxb4 {[%clk 0:00:07]} 64. Qxf1 {[%clk 0:00:11]}  Bxf1 {[%clk 0:00:08]} 65. c6 {[%clk 0:00:12]}  a5 {[%clk 0:00:05]} 66. c7 {[%clk 0:00:12]}  a4 {[%clk 0:00:06]} 67. Ke5 {[%clk 0:00:12]}  Bh3 {[%clk 0:00:06]} 68. Re8 {[%clk 0:00:12]}  a3 {[%clk 0:00:06]} 69. Be3 {[%clk 0:00:11]}  a2 {[%clk 0:00:06]} 70. Bd4 {[%clk 0:00:11]}  Kb3 {[%clk 0:00:06]} 71. c8=Q {[%clk 0:00:11]}  Bxc8 {[%clk 0:00:06]} 72. Rxc8 {[%clk 0:00:11]}  Ka3 {[%clk 0:00:05]} 73. Ra8+ {[%clk 0:00:11]}  Kb3 {[%clk 0:00:06]} 74. Kd5 {[%clk 0:00:11]}  Kb4 {[%clk 0:00:05]} 75. Rxa2 {[%clk 0:00:12]}  Kb3 {[%clk 0:00:05]} 76. Rb2+ {[%clk 0:00:12]}  Ka3 {[%clk 0:00:06]} 77. Kc4 {[%clk 0:00:10]}  Ka4 {[%clk 0:00:07]} 78. Ra2# {[%clk 0:00:10]} 1-0


[Site "https://www.chess.com"]

[Event "Titled Tuesday Blitz April 25 Late 2023"]
[White "Mortazavi, Ali"]
[Black "Bruedigam, Martin"]
[WhiteFideId "401323"]
[BlackFideId "24608033"]
[WhiteElo "2339"]
[BlackElo "2331"]
[Result "1-0"]
[Round "06"]
[TimeControl "180+2"]
[Date "2023.04.25"]
[WhiteClock "0:00:15"]
[BlackClock "0:00:02"]

1. Nf3 {[%clk 0:03:00]}  d5 {[%clk 0:02:59]} 2. g3 {[%clk 0:03:01]}  c6 {[%clk 0:02:58]} 3. Bg2 {[%clk 0:03:01]}  Bg4 {[%clk 0:02:59]} 4. O-O {[%clk 0:03:02]}  Nd7 {[%clk 0:02:59]} 5. d3 {[%clk 0:03:03]}  Ngf6 {[%clk 0:02:48]} 6. c4 {[%clk 0:03:02]}  dxc4 {[%clk 0:02:45]} 7. dxc4 {[%clk 0:03:02]}  h6 {[%clk 0:02:45]} 8. Qc2 {[%clk 0:02:54]}  e6 {[%clk 0:02:43]} 9. Rd1 {[%clk 0:02:49]}  Bf5 {[%clk 0:02:41]} 10. Qb3 {[%clk 0:02:39]}  Nc5 {[%clk 0:02:17]} 11. Rxd8+ {[%clk 0:02:27]}  Rxd8 {[%clk 0:02:17]} 12. Qe3 {[%clk 0:01:55]}  Rd1+ {[%clk 0:02:10]} 13. Bf1 {[%clk 0:01:55]}  Bh3 {[%clk 0:01:07]} 14. Nbd2 {[%clk 0:01:46]}  Nce4 {[%clk 0:00:20]} 15. Qb3 {[%clk 0:01:17]}  Bc5 {[%clk 0:00:08]} 16. e3 {[%clk 0:01:04]}  Nxd2 {[%clk 0:00:05]} 17. Qxd1 {[%clk 0:00:54]}  Nxf1 {[%clk 0:00:05]} 18. Nd2 {[%clk 0:00:38]}  Nxd2 {[%clk 0:00:04]} 19. Bxd2 {[%clk 0:00:38]}  O-O {[%clk 0:00:04]} 20. Bc3 {[%clk 0:00:38]}  Bb6 {[%clk 0:00:03]} 21. Qe2 {[%clk 0:00:23]}  Ne4 {[%clk 0:00:03]} 22. Bd4 {[%clk 0:00:22]}  c5 {[%clk 0:00:02]} 23. Be5 {[%clk 0:00:22]}  Bf5 {[%clk 0:00:03]} 24. Rd1 {[%clk 0:00:21]}  f6 {[%clk 0:00:02]} 25. Bc3 {[%clk 0:00:18]}  Bg6 {[%clk 0:00:01]} 26. f3 {[%clk 0:00:18]}  Ng5 {[%clk 0:00:01]} 27. Kg2 {[%clk 0:00:16]}  e5 {[%clk 0:00:02]} 28. e4 {[%clk 0:00:15]} 1-0


[Site "https://www.chess.com"]

[Event "Titled Tuesday Blitz April 25 Late 2023"]
[White "Kovalevsky, Stanislav"]
[Black "Rosen, Eric"]
[WhiteFideId "13508598"]
[BlackFideId "2032562"]
[WhiteElo "2174"]
[BlackElo "2331"]
[Result "1/2-1/2"]
[Round "06"]
[TimeControl "180+2"]
[Date "2023.04.25"]
[WhiteClock "0:00:15"]
[BlackClock "0:00:04"]

1. c4 {[%clk 0:03:00]}  e6 {[%clk 0:02:59]} 2. e4 {[%clk 0:02:59]}  d5 {[%clk 0:02:58]} 3. exd5 {[%clk 0:02:59]}  exd5 {[%clk 0:02:58]} 4. cxd5 {[%clk 0:03:00]}  Nf6 {[%clk 0:02:58]} 5. Nc3 {[%clk 0:03:01]}  Nxd5 {[%clk 0:02:58]} 6. Bc4 {[%clk 0:03:02]}  Nxc3 {[%clk 0:02:28]} 7. bxc3 {[%clk 0:02:54]}  Bd6 {[%clk 0:02:25]} 8. Qe2+ {[%clk 0:02:49]}  Qe7 {[%clk 0:02:21]} 9. Qxe7+ {[%clk 0:02:48]}  Kxe7 {[%clk 0:02:14]} 10. Ne2 {[%clk 0:02:47]}  Be6 {[%clk 0:02:07]} 11. Bxe6 {[%clk 0:02:46]}  Kxe6 {[%clk 0:02:08]} 12. f3 {[%clk 0:02:39]}  c5 {[%clk 0:01:59]} 13. d4 {[%clk 0:02:36]}  Nc6 {[%clk 0:01:43]} 14. Be3 {[%clk 0:02:18]}  cxd4 {[%clk 0:01:15]} 15. Nxd4+ {[%clk 0:02:10]}  Nxd4 {[%clk 0:01:15]} 16. Bxd4 {[%clk 0:02:11]}  f6 {[%clk 0:00:46]} 17. O-O-O {[%clk 0:02:00]}  Ba3+ {[%clk 0:00:40]} 18. Kc2 {[%clk 0:01:58]}  a6 {[%clk 0:00:38]} 19. Rhe1+ {[%clk 0:01:51]}  Kf7 {[%clk 0:00:38]} 20. Bb6 {[%clk 0:01:51]}  Rab8 {[%clk 0:00:24]} 21. Rd7+ {[%clk 0:01:44]}  Kg6 {[%clk 0:00:24]} 22. Kb3 {[%clk 0:01:43]}  Bf8 {[%clk 0:00:22]} 23. Red1 {[%clk 0:01:24]}  h5 {[%clk 0:00:20]} 24. Rd8 {[%clk 0:01:20]}  Be7 {[%clk 0:00:08]} 25. Rxh8 {[%clk 0:01:17]}  Rxh8 {[%clk 0:00:09]} 26. Rd7 {[%clk 0:01:17]}  Re8 {[%clk 0:00:07]} 27. Rxb7 {[%clk 0:01:17]}  Bd6 {[%clk 0:00:08]} 28. h3 {[%clk 0:01:07]}  h4 {[%clk 0:00:04]} 29. c4 {[%clk 0:00:45]}  Re2 {[%clk 0:00:04]} 30. c5 {[%clk 0:00:46]}  Be5 {[%clk 0:00:04]} 31. c6 {[%clk 0:00:39]}  Rb2+ {[%clk 0:00:04]} 32. Kc4 {[%clk 0:00:35]}  Kf5 {[%clk 0:00:03]} 33. a4 {[%clk 0:00:27]}  g5 {[%clk 0:00:02]} 34. a5 {[%clk 0:00:27]}  Rc2+ {[%clk 0:00:02]} 35. Kd5 {[%clk 0:00:24]}  Rd2+ {[%clk 0:00:02]} 36. Kc4 {[%clk 0:00:25]}  Rc2+ {[%clk 0:00:03]} 37. Kd5 {[%clk 0:00:21]}  Rd2+ {[%clk 0:00:03]} 38. Kc4 {[%clk 0:00:15]}  Rc2+ {[%clk 0:00:04]} 1/2-1/2


[Site "https://www.chess.com"]

[Event "Titled Tuesday Blitz April 25 Late 2023"]
[White "Ibadov, Dashgyn"]
[Black "Pesotskiy, Mikhail"]
[WhiteFideId "24107514"]
[BlackFideId "34164453"]
[WhiteElo "2208"]
[BlackElo "2131"]
[Result "0-1"]
[Round "06"]
[TimeControl "180+2"]
[Date "2023.04.25"]
[WhiteClock "0:00:01"]
[BlackClock "0:00:09"]

1. e4 {[%clk 0:03:00]}  e6 {[%clk 0:02:59]} 2. d4 {[%clk 0:03:00]}  d5 {[%clk 0:02:59]} 3. Nc3 {[%clk 0:03:01]}  Bb4 {[%clk 0:02:56]} 4. e5 {[%clk 0:03:01]}  c5 {[%clk 0:02:54]} 5. a3 {[%clk 0:03:01]}  Bxc3+ {[%clk 0:02:54]} 6. bxc3 {[%clk 0:03:02]}  Qa5 {[%clk 0:02:55]} 7. Bd2 {[%clk 0:02:59]}  Qa4 {[%clk 0:02:55]} 8. Nf3 {[%clk 0:02:47]}  b6 {[%clk 0:02:53]} 9. dxc5 {[%clk 0:02:36]}  bxc5 {[%clk 0:02:54]} 10. c4 {[%clk 0:02:34]}  Ne7 {[%clk 0:02:49]} 11. cxd5 {[%clk 0:02:32]}  exd5 {[%clk 0:02:50]} 12. Bd3 {[%clk 0:02:09]}  O-O {[%clk 0:02:40]} 13. O-O {[%clk 0:02:08]}  Bf5 {[%clk 0:02:39]} 14. Be3 {[%clk 0:01:59]}  d4 {[%clk 0:02:35]} 15. Bg5 {[%clk 0:01:44]}  Nbc6 {[%clk 0:02:33]} 16. Qd2 {[%clk 0:01:27]}  Rab8 {[%clk 0:02:17]} 17. Qf4 {[%clk 0:01:22]}  Bxd3 {[%clk 0:02:07]} 18. cxd3 {[%clk 0:01:23]}  Rb3 {[%clk 0:01:59]} 19. Qe4 {[%clk 0:01:23]}  Rxa3 {[%clk 0:01:52]} 20. Rxa3 {[%clk 0:01:15]}  Qxa3 {[%clk 0:01:53]} 21. Bxe7 {[%clk 0:01:16]}  Nxe7 {[%clk 0:01:53]} 22. Ng5 {[%clk 0:01:17]}  g6 {[%clk 0:00:57]} 23. e6 {[%clk 0:00:49]}  f6 {[%clk 0:00:56]} 24. Qb7 {[%clk 0:00:40]}  c4 {[%clk 0:00:53]} 25. Ne4 {[%clk 0:00:22]}  c3 {[%clk 0:00:52]} 26. h4 {[%clk 0:00:19]}  c2 {[%clk 0:00:41]} 27. Kh2 {[%clk 0:00:19]}  Kg7 {[%clk 0:00:32]} 28. h5 {[%clk 0:00:15]}  Rc8 {[%clk 0:00:29]} 29. h6+ {[%clk 0:00:10]}  Kxh6 {[%clk 0:00:29]} 30. Nxf6 {[%clk 0:00:02]}  c1=Q {[%clk 0:00:17]} 31. Rxc1 {[%clk 0:00:02]}  Rxc1 {[%clk 0:00:18]} 32. Ng4+ {[%clk 0:00:02]}  Kg7 {[%clk 0:00:18]} 33. Qf3 {[%clk 0:00:02]}  Qd6+ {[%clk 0:00:18]} 34. g3 {[%clk 0:00:02]}  Nf5 {[%clk 0:00:18]} 35. Qb7+ {[%clk 0:00:02]}  Rc7 {[%clk 0:00:19]} 36. e7 {[%clk 0:00:01]}  Qxe7 {[%clk 0:00:18]} 37. Qd5 {[%clk 0:00:01]}  Rd7 {[%clk 0:00:18]} 38. Qb5 {[%clk 0:00:01]}  h5 {[%clk 0:00:19]} 39. Ne5 {[%clk 0:00:01]}  Rb7 {[%clk 0:00:18]} 40. Qd5 {[%clk 0:00:01]}  Rb2 {[%clk 0:00:15]} 41. Nc6 {[%clk 0:00:01]}  Rxf2+ {[%clk 0:00:13]} 42. Kh3 {[%clk 0:00:02]}  Qe2 {[%clk 0:00:08]} 43. Qd7+ {[%clk 0:00:02]}  Kh6 {[%clk 0:00:08]} 44. Ne7 {[%clk 0:00:01]}  Rh2# {[%clk 0:00:09]} 0-1


[Site "https://www.chess.com"]

[Event "Titled Tuesday Blitz April 25 Late 2023"]
[White "Ismagilov, Damir"]
[Black "Bashkansky, Ethan"]
[WhiteFideId "34199982"]
[BlackFideId "2071533"]
[WhiteElo "2078"]
[BlackElo "2101"]
[Result "1-0"]
[Round "06"]
[TimeControl "180+2"]
[Date "2023.04.25"]
[WhiteClock "0:01:58"]
[BlackClock "0:00:14"]

1. d4 {[%clk 0:03:00]}  f5 {[%clk 0:02:59]} 2. Bg5 {[%clk 0:02:59]}  g6 {[%clk 0:02:59]} 3. Nc3 {[%clk 0:02:57]}  d5 {[%clk 0:02:59]} 4. e3 {[%clk 0:02:54]}  Bg7 {[%clk 0:02:58]} 5. h4 {[%clk 0:02:53]}  h6 {[%clk 0:02:55]} 6. Bf4 {[%clk 0:02:52]}  Be6 {[%clk 0:02:50]} 7. Nf3 {[%clk 0:02:52]}  Nd7 {[%clk 0:02:41]} 8. Nb5 {[%clk 0:02:51]}  Kf8 {[%clk 0:02:03]} 9. Nxc7 {[%clk 0:02:48]}  Bf7 {[%clk 0:01:51]} 10. Nxa8 {[%clk 0:02:46]}  Qxa8 {[%clk 0:01:51]} 11. Ne5 {[%clk 0:02:35]}  Ndf6 {[%clk 0:01:45]} 12. Bd3 {[%clk 0:02:27]}  Qc8 {[%clk 0:01:39]} 13. h5 {[%clk 0:02:21]}  Nxh5 {[%clk 0:01:35]} 14. Rxh5 {[%clk 0:02:21]}  gxh5 {[%clk 0:01:35]} 15. Nxf7 {[%clk 0:02:21]}  Kxf7 {[%clk 0:01:31]} 16. Qxh5+ {[%clk 0:02:21]}  Kf8 {[%clk 0:01:29]} 17. Qxf5+ {[%clk 0:02:16]}  Qxf5 {[%clk 0:01:29]} 18. Bxf5 {[%clk 0:02:17]}  Nf6 {[%clk 0:01:22]} 19. Be6 {[%clk 0:02:13]}  h5 {[%clk 0:00:43]} 20. Ke2 {[%clk 0:02:10]}  Bh6 {[%clk 0:00:42]} 21. Be5 {[%clk 0:02:09]}  Rh7 {[%clk 0:00:36]} 22. Rc1 {[%clk 0:02:06]}  Rg7 {[%clk 0:00:29]} 23. g3 {[%clk 0:02:01]}  Bg5 {[%clk 0:00:23]} 24. c4 {[%clk 0:02:00]}  dxc4 {[%clk 0:00:15]} 25. Rxc4 {[%clk 0:02:01]}  Rh7 {[%clk 0:00:15]} 26. Rc8+ {[%clk 0:01:59]}  Kg7 {[%clk 0:00:16]} 27. f4 {[%clk 0:01:58]}  Bh6 {[%clk 0:00:14]} 28. Rg8# {[%clk 0:01:58]} 1-0


[Site "https://www.chess.com"]

[Event "Titled Tuesday Blitz April 25 Late 2023"]
[White "Sailer, Mike"]
[Black "Ehlvest, Jaan"]
[WhiteFideId "2012901"]
[BlackFideId "4500016"]
[WhiteElo "2109"]
[BlackElo "2442"]
[Result "0-1"]
[Round "06"]
[TimeControl "180+2"]
[Date "2023.04.25"]
[WhiteClock "0:02:08"]
[BlackClock "0:01:57"]

1. d4 {[%clk 0:02:58]}  Nf6 {[%clk 0:02:56]} 2. Nf3 {[%clk 0:02:53]}  c5 {[%clk 0:02:55]} 3. Bg5 {[%clk 0:02:47]}  cxd4 {[%clk 0:02:54]} 4. Bxf6 {[%clk 0:02:47]}  gxf6 {[%clk 0:02:53]} 5. Qxd4 {[%clk 0:02:47]}  Nc6 {[%clk 0:02:51]} 6. Qh4 {[%clk 0:02:46]}  d5 {[%clk 0:02:50]} 7. Nc3 {[%clk 0:02:38]}  f5 {[%clk 0:02:17]} 8. O-O-O {[%clk 0:02:29]}  e6 {[%clk 0:02:17]} 9. Qxd8+ {[%clk 0:02:29]}  Kxd8 {[%clk 0:02:17]} 10. Ng5 {[%clk 0:02:27]}  Ke7 {[%clk 0:02:15]} 11. f3 {[%clk 0:02:25]}  Bh6 {[%clk 0:02:12]} 12. h4 {[%clk 0:02:24]}  f6 {[%clk 0:02:11]} 13. f4 {[%clk 0:02:22]}  fxg5 {[%clk 0:02:10]} 14. hxg5 {[%clk 0:02:23]}  Bg7 {[%clk 0:02:10]} 15. e3 {[%clk 0:02:21]}  Bd7 {[%clk 0:02:10]} 16. Be2 {[%clk 0:02:17]}  h6 {[%clk 0:02:09]} 17. g6 {[%clk 0:02:16]}  Bxc3 {[%clk 0:02:05]} 18. bxc3 {[%clk 0:02:16]}  Rag8 {[%clk 0:02:05]} 19. g4 {[%clk 0:02:14]}  fxg4 {[%clk 0:02:04]} 20. Bxg4 {[%clk 0:02:14]}  Rxg6 {[%clk 0:02:04]} 21. Bh5 {[%clk 0:02:14]}  Rg3 {[%clk 0:02:04]} 22. f5 {[%clk 0:02:14]}  Ne5 {[%clk 0:01:58]} 23. fxe6 {[%clk 0:02:14]}  Bxe6 {[%clk 0:01:58]} 24. e4 {[%clk 0:02:08]}  dxe4 {[%clk 0:01:57]} 0-1


[Site "https://www.chess.com"]

[Event "Titled Tuesday Blitz April 25 Late 2023"]
[White "Tsyhanchuk, Stanislav"]
[Black "Indjic, Aleksandar"]
[WhiteFideId "13505130"]
[BlackFideId "911925"]
[WhiteElo "2173"]
[BlackElo "2614"]
[Result "1/2-1/2"]
[Round "06"]
[TimeControl "180+2"]
[Date "2023.04.25"]
[WhiteClock "0:00:03"]
[BlackClock "0:00:03"]

1. c4 {[%clk 0:03:00]}  e5 {[%clk 0:02:55]} 2. Nc3 {[%clk 0:03:01]}  Nf6 {[%clk 0:02:54]} 3. Nf3 {[%clk 0:03:01]}  Nc6 {[%clk 0:02:53]} 4. e4 {[%clk 0:03:00]}  d6 {[%clk 0:02:48]} 5. h3 {[%clk 0:02:56]}  Nd4 {[%clk 0:02:47]} 6. d3 {[%clk 0:02:51]}  Nxf3+ {[%clk 0:02:46]} 7. Qxf3 {[%clk 0:02:49]}  g6 {[%clk 0:02:44]} 8. g3 {[%clk 0:02:49]}  Bg7 {[%clk 0:02:43]} 9. Bg5 {[%clk 0:02:43]}  h6 {[%clk 0:02:41]} 10. Be3 {[%clk 0:02:35]}  O-O {[%clk 0:02:39]} 11. Bg2 {[%clk 0:02:35]}  Nd7 {[%clk 0:02:39]} 12. O-O {[%clk 0:02:35]}  f5 {[%clk 0:02:37]} 13. exf5 {[%clk 0:02:33]}  gxf5 {[%clk 0:02:36]} 14. Qh5 {[%clk 0:02:32]}  Nf6 {[%clk 0:02:16]} 15. Qh4 {[%clk 0:02:32]}  Kh7 {[%clk 0:02:04]} 16. f4 {[%clk 0:02:21]}  c6 {[%clk 0:02:04]} 17. fxe5 {[%clk 0:02:20]}  dxe5 {[%clk 0:02:05]} 18. Rad1 {[%clk 0:02:11]}  Be6 {[%clk 0:01:55]} 19. b3 {[%clk 0:02:11]}  Qe8 {[%clk 0:01:52]} 20. d4 {[%clk 0:02:09]}  e4 {[%clk 0:01:52]} 21. d5 {[%clk 0:02:03]}  cxd5 {[%clk 0:01:52]} 22. cxd5 {[%clk 0:02:03]}  Bd7 {[%clk 0:01:53]} 23. d6 {[%clk 0:01:59]}  Rc8 {[%clk 0:01:52]} 24. Nd5 {[%clk 0:01:58]}  Nxd5 {[%clk 0:01:51]} 25. Rxd5 {[%clk 0:01:59]}  Qe6 {[%clk 0:01:42]} 26. Rfxf5 {[%clk 0:01:36]}  Rxf5 {[%clk 0:01:34]} 27. Rxf5 {[%clk 0:01:37]}  Qxd6 {[%clk 0:01:34]} 28. Rf7 {[%clk 0:01:30]}  Kg8 {[%clk 0:01:33]} 29. Rf4 {[%clk 0:01:11]}  Qd3 {[%clk 0:01:19]} 30. Rxe4 {[%clk 0:00:48]}  Bc6 {[%clk 0:01:14]} 31. Qg4 {[%clk 0:00:45]}  Bd7 {[%clk 0:00:36]} 32. Qg6 {[%clk 0:00:34]}  Qd1+ {[%clk 0:00:31]} 33. Kh2 {[%clk 0:00:34]}  Rc2 {[%clk 0:00:04]} 34. Re8+ {[%clk 0:00:02]}  Bxe8 {[%clk 0:00:04]} 35. Qxe8+ {[%clk 0:00:03]}  Bf8 {[%clk 0:00:04]} 36. Qe4 {[%clk 0:00:03]}  Qe2 {[%clk 0:00:02]} 37. Qg6+ {[%clk 0:00:03]}  Bg7 {[%clk 0:00:02]} 38. Qe8+ {[%clk 0:00:03]}  Kh7 {[%clk 0:00:03]} 39. Qe4+ {[%clk 0:00:03]}  Kg8 {[%clk 0:00:03]} 40. Qe8+ {[%clk 0:00:02]}  Bf8 {[%clk 0:00:03]} 41. Qg6+ {[%clk 0:00:03]}  Bg7 {[%clk 0:00:03]} 42. Qe8+ {[%clk 0:00:03]} 1/2-1/2


[Site "https://www.chess.com"]

[Event "Titled Tuesday Blitz April 25 Late 2023"]
[White "Erdogan, Anil Berk"]
[Black "Bitoon, Richard"]
[WhiteFideId "6348173"]
[BlackFideId "5201110"]
[WhiteElo "2007"]
[BlackElo "2374"]
[Result "0-1"]
[Round "06"]
[TimeControl "180+2"]
[Date "2023.04.25"]
[WhiteClock "0:00:26"]
[BlackClock "0:01:06"]

1. e4 {[%clk 0:02:52]}  e5 {[%clk 0:03:00]} 2. Nf3 {[%clk 0:02:51]}  Nc6 {[%clk 0:03:00]} 3. d4 {[%clk 0:02:49]}  exd4 {[%clk 0:03:01]} 4. Nxd4 {[%clk 0:02:50]}  Nf6 {[%clk 0:03:01]} 5. Nc3 {[%clk 0:02:51]}  Bc5 {[%clk 0:03:01]} 6. Nb3 {[%clk 0:02:50]}  Bb4 {[%clk 0:03:00]} 7. Qe2 {[%clk 0:02:50]}  O-O {[%clk 0:02:59]} 8. Bd2 {[%clk 0:02:47]}  Bxc3 {[%clk 0:02:58]} 9. Bxc3 {[%clk 0:02:48]}  Nxe4 {[%clk 0:02:59]} 10. O-O-O {[%clk 0:02:27]}  Nxc3 {[%clk 0:02:58]} 11. bxc3 {[%clk 0:02:28]}  a5 {[%clk 0:02:58]} 12. Qh5 {[%clk 0:02:22]}  a4 {[%clk 0:02:57]} 13. Nd4 {[%clk 0:02:21]}  Qf6 {[%clk 0:02:57]} 14. Bd3 {[%clk 0:02:19]}  g6 {[%clk 0:02:56]} 15. Qh6 {[%clk 0:02:19]}  Nxd4 {[%clk 0:02:54]} 16. cxd4 {[%clk 0:02:19]}  Qxd4 {[%clk 0:02:55]} 17. h4 {[%clk 0:02:14]}  Qa1+ {[%clk 0:02:19]} 18. Kd2 {[%clk 0:02:14]}  Qg7 {[%clk 0:02:20]} 19. Qe3 {[%clk 0:01:54]}  Ra5 {[%clk 0:02:03]} 20. h5 {[%clk 0:01:54]}  Qe5 {[%clk 0:02:03]} 21. Qh3 {[%clk 0:01:35]}  Qf4+ {[%clk 0:02:01]} 22. Qe3 {[%clk 0:01:31]}  Qxe3+ {[%clk 0:01:59]} 23. fxe3 {[%clk 0:01:32]}  Rg5 {[%clk 0:01:57]} 24. Rdg1 {[%clk 0:01:17]}  gxh5 {[%clk 0:01:57]} 25. Rh2 {[%clk 0:01:18]}  d6 {[%clk 0:01:57]} 26. Rgh1 {[%clk 0:01:18]}  Bg4 {[%clk 0:01:57]} 27. Kc3 {[%clk 0:01:17]}  Re8 {[%clk 0:01:55]} 28. e4 {[%clk 0:01:15]}  Rc5+ {[%clk 0:01:44]} 29. Kd4 {[%clk 0:01:15]}  b5 {[%clk 0:01:39]} 30. a3 {[%clk 0:01:15]}  Rb8 {[%clk 0:01:38]} 31. Rb1 {[%clk 0:01:14]}  Kg7 {[%clk 0:01:36]} 32. Rhh1 {[%clk 0:01:13]}  Rg5 {[%clk 0:01:36]} 33. Kc3 {[%clk 0:01:07]}  Bd7 {[%clk 0:01:33]} 34. Rb4 {[%clk 0:00:56]}  c5 {[%clk 0:01:29]} 35. Rbb1 {[%clk 0:00:56]}  Rg3 {[%clk 0:01:23]} 36. Kd2 {[%clk 0:00:49]}  Rxg2+ {[%clk 0:01:22]} 37. Ke3 {[%clk 0:00:49]}  Rg5 {[%clk 0:01:22]} 38. Be2 {[%clk 0:00:42]}  Kg6 {[%clk 0:01:18]} 39. Rbg1 {[%clk 0:00:39]}  Bg4 {[%clk 0:01:14]} 40. Bd3 {[%clk 0:00:30]}  c4 {[%clk 0:01:14]} 41. Bf1 {[%clk 0:00:27]}  Re8 {[%clk 0:01:14]} 42. Bg2 {[%clk 0:00:27]}  d5 {[%clk 0:01:12]} 43. Rd1 {[%clk 0:00:26]}  dxe4 {[%clk 0:01:10]} 44. Rd6+ {[%clk 0:00:26]}  Kg7 {[%clk 0:01:09]} 45. Rf1 {[%clk 0:00:26]}  Rg6 {[%clk 0:01:06]} 46. Rd7 {[%clk 0:00:26]}  Bxd7 {[%clk 0:01:06]} 0-1


[Site "https://www.chess.com"]